[Event "25th Zadar Open 2018"]
[Site "Zadar"]
[Date "2018.12.16"]
[Round "3.27"]
[White "Chan, Kim Yew"]
[Black "Samani, Yamac"]
[Result "1/2-1/2"]
[ECO "E60"]
[WhiteElo "2175"]
[BlackElo "2267"]
[Annotator "NA"]
[PlyCount "62"]
[EventDate "2018.12.15"]
[EventType "swiss"]
[EventCountry "CRO"]
[SourceTitle "playchess.com"]
[Source "ChessBase"]
[SourceQuality "1"]
[TimeControl "40/5400+30:1800+30"]

1. Nf3 {[%emt 0:00:30]} Nf6 {[%emt 0:00:30]} 2. c4 {[%emt 0:00:00]} g6 {[%emt 0:00:30]} 3. b3 {[%emt 0:00:00]} Bg7 {[%emt 0:00:00]} 4. Bb2 {[%emt 0:00:00]} O-O {[%emt 0:00:00]} 5. g3 {[%emt 0:00:00]} d6 {[%emt 0:00:30]} 6. d4 {[%emt 0:00:30]} e5 {[%emt 0:01:30]} 7. dxe5 {[%emt 0:00:30]} dxe5 {[%emt 0:00:30]} 8. Qxd8 {[%emt 0:00:30]} Rxd8 {[%emt 0:00:00]} 9. Nxe5 {[%emt 0:01:30]} Na6 {[%emt 0:01:00]} 10. Nd3 {[%emt 0:00:00]} Bf5 {[%emt 0:01:30]} 11. Nc3 {[%emt 0:01:00]} Bxd3 {[%emt 0:01:30]} 12. exd3 {[%emt 0:00:30]} Nb4 {[%emt 0:04:30]} 13. O-O-O {[%emt 0:00:30]} Ng4 {[%emt 0:00:30]} 14. Rd2 {[%emt 0:00:30]} Ne5 {[%emt 0:10:30]} 15. Kb1 {[%emt 0:01:30]} Nexd3 {[%emt 0:04:30]} 16. Bxd3 {[%emt 0:00:30]} Rxd3 {[%emt 0:00:30]} 17. Rhd1 {[%emt 0:00:00]} Rad8 {[%emt 0:11:30]} 18. Nd5 {[%emt 0:00:00]} Rxd2 {[%emt 0:01:30]} 19. Rxd2 {[%emt 0:00:00]} Nxd5 {[%emt 0:04:30]} 20. Rxd5 {[%emt 0:00:00]} Rxd5 {[%emt 0:05:30]} 21. cxd5 {[%emt 0:00:30]} Kf8 {[%emt 0:02:30]} 22. Kc2 {[%emt 0:05:30]} Bxb2 {[%emt 0:00:30]} 23. Kxb2 {[%emt 0:00:00]} Ke7 {[%emt 0:00:30]} 24. Kc3 {[%emt 0:00:00]} Kd6 {[%emt 0:11:30]} 25. Kd4 {[%emt 0:00:30]} f6 {[%emt 0:02:30]} 26. b4 {[%emt 0:04:30]} c6 {[%emt 0:02:30]} 27. dxc6 {[%emt 0:01:30]} Kxc6 {[%emt 0:00:30]} 28. Kc4 {[%emt 0:00:30]} Kd6 {[%emt 0:00:00]} 29. Kd4 {[%emt 0:00:30]} Kc6 {[%emt 0:00:00]} 30. Kc4 {[%emt 0:00:00]} Kd6 {[%emt 0:00:00]} 31. Kd4 {[%emt 0:00:00]} Kc6 {[%emt 0:00:00]} 1/2-1/2

[Event "25th Zadar Open 2018"]
[Site "Zadar"]
[Date "2018.12.17"]
[Round "4.4"]
[White "Jakic, Ivan"]
[Black "Loiseau, Quentin"]
[Result "1/2-1/2"]
[ECO "B31"]
[WhiteElo "2393"]
[BlackElo "2443"]
[Annotator "NA"]
[PlyCount "48"]
[EventDate "2018.12.15"]
[EventType "swiss"]
[EventCountry "CRO"]
[SourceTitle "playchess.com"]
[Source "ChessBase"]
[SourceQuality "1"]
[TimeControl "40/5400+30:1800+30"]

1. e4 {[%emt 0:00:30]} c5 {[%emt 0:00:30]} 2. Nf3 {[%emt 0:00:00]} Nc6 {[%emt 0:00:00]} 3. Bb5 {[%emt 0:00:00]} g6 {[%emt 0:00:00]} 4. Bxc6 {[%emt 0:00:00]} dxc6 {[%emt 0:00:30]} 5. Nc3 {[%emt 0:00:00]} Bg7 {[%emt 0:00:30]} 6. d3 {[%emt 0:00:30]} e5 {[%emt 0:03:30]} 7. Be3 {[%emt 0:00:00]} Qe7 {[%emt 0:00:30]} 8. h3 {[%emt 0:00:00]} Nf6 {[%emt 0:02:30]} 9. Qd2 {[%emt 0:00:30]} h6 {[%emt 0:03:30]} 10. Nh2 {[%emt 0:02:30]} Nd7 {[%emt 0:01:30]} 11. O-O {[%emt 0:05:30]} Nf8 {[%emt 0:01:30]} 12. f4 {[%emt 0:00:00]} exf4 {[%emt 0:01:30]} 13. Rxf4 {[%emt 0:00:00]} g5 {[%emt 0:05:30]} 14. Rf2 {[%emt 0:00:30]} Be6 {[%emt 0:02:30]} 15. a4 {[%emt 0:04:30]} Nd7 {[%emt 0:17:30]} 16. a5 {[%emt 0:08:30]} Be5 {[%emt 0:18:30]} 17. Raf1 {[%emt 0:20:30]} Bc7 {[%emt 0:04:30]} 18. d4 {[%emt 0:21:30]} cxd4 {[%emt 0:10:30]} 19. Qxd4 {[%emt 0:00:30]} Be5 {[%emt 0:00:30]} 20. Qa4 {[%emt 0:00:30]} Nc5 {[%emt 0:04:30]} 21. Qb4 {[%emt 0:03:30]} Na6 {[%emt 0:00:30]} 22. Qa4 {[%emt 0:02:30]} Nc5 {[%emt 0:09:45]} 23. Qb4 {[%emt 0:00:00]} Na6 {[%emt 0:00:11]} 24. Qa4 {[%emt 0:01:00]} Nc5 {[%emt 0:06:18]} 1/2-1/2

[Event "25th Zadar Open 2018"]
[Site "Zadar"]
[Date "2018.12.17"]
[Round "4.5"]
[White "Bukal, Vladimir Jr."]
[Black "Petrov, Nikita"]
[Result "1/2-1/2"]
[ECO "D02"]
[WhiteElo "2390"]
[BlackElo "2593"]
[Annotator "ChessBase"]
[PlyCount "94"]
[EventDate "2018.12.15"]
[EventType "swiss"]
[EventCountry "CRO"]
[SourceTitle "playchess.com"]
[Source "ChessBase"]
[SourceQuality "1"]
[TimeControl "40/5400+30:1800+30"]

1. d4 {[%emt 0:00:30]} Nf6 {[%emt 0:00:30]} 2. Bf4 {[%emt 0:00:00]} d5 {[%emt 0:00:30]} 3. e3 {[%emt 0:00:00]} e6 {[%emt 0:01:30]} 4. Nf3 {[%emt 0:00:30]} Bd6 {[%emt 0:00:30]} 5. Nbd2 {[%emt 0:00:30]} O-O {[%emt 0:02:30]} 6. Bd3 {[%emt 0:00:30]} b6 {[%emt 0:01:30]} 7. O-O {[%emt 0:07:30]} Bb7 {[%emt 0:05:30]} 8. Ne5 {[%emt 0:04:30]} Ne4 {[%emt 0:02:30]} 9. f3 {[%emt 0:06:30]} Nxd2 {[%emt 0:02:30]} 10. Qxd2 {[%emt 0:00:30]} c5 {[%emt 0:10:30]} 11. c3 {[%emt 0:02:30]} f6 {[%emt 0:07:30]} 12. Ng4 {[%emt 0:00:30]} Nc6 {[%emt 0:00:30]} 13. Bxd6 {[%emt 0:07:30]} Qxd6 {[%emt 0:00:30]} 14. f4 {[%emt 0:00:30]} Ne7 {[%emt 0:31:30]} 15. b4 {[%emt 0:04:30]} cxb4 {[%emt 0:02:30]} 16. cxb4 {[%emt 0:00:00]} Nf5 {[%emt 0:01:30]} 17. a4 {[%emt 0:05:00]} Qd7 {[%emt 0:06:30]} 18. Rfc1 {[%emt 0:18:30]} Rfc8 {[%emt 0:00:36]} 19. Rxc8+ {[%emt 0:09:30]} Rxc8 {[%emt 0:00:24]} 20. Bxf5 {[%emt 0:05:30]} exf5 {[%emt 0:00:30]} 21. Nf2 {[%emt 0:00:00]} Rc4 {[%emt 0:00:46]} 22. Nd3 {[%emt 0:00:00]} Qc6 {[%emt 0:03:46]} 23. b5 {[%emt 0:01:30]} Qc7 {[%emt 0:02:21]} 24. a5 {[%emt 0:04:30]} Rc2 {[%emt 0:03:09]} 25. axb6 {[%emt 0:00:30]} axb6 {[%emt 0:00:14]} 26. Rc1 {[%emt 0:01:30]} Rc4 {[%emt 0:01:07]} 27. Ra1 {[%emt 0:00:30]} Rc2 {[%emt 0:00:53]} 28. Rc1 {[%emt 0:02:22]} Rc4 {[%emt 0:00:05]} 29. Ra1 {[%emt 0:00:45]} h6 {[%emt 0:04:07]} 30. h3 {[%emt 0:04:43]} Rc2 {[%emt 0:00:25]} 31. Rc1 {[%emt 0:05:18]} Rc4 {[%emt 0:00:16]} 32. Ra1 {[%emt 0:00:38]} Rc2 {[%emt 0:00:09]} 33. Rc1 {[%emt 0:00:02]} Rc4 {[%emt 0:00:55]} 34. Ra1 {[%emt 0:00:07]} Kh7 {[%emt 0:03:23]} 35. Kh2 {[%emt 0:01:14]} Rc2 {[%emt 0:01:19]} 36. Rc1 {[%emt 0:00:06]} Rc4 {[%emt 0:00:10]} 37. Ra1 {[%emt 0:00:36]} Bc8 {[%emt 0:01:56]} 38. Nb4 {[%emt 0:01:27]} Qd6 {[%emt 0:00:09]} 39. Nc6 {[%emt 0:00:19]} Bd7 {[%emt 0:00:15]} 40. Ra6 {[%emt 0:00:00]} Bxc6 {[%emt 0:00:00]} 41. Rxb6 {[%emt 0:01:23]} Qc7 {[%emt 0:06:05]} 42. Rxc6 {[%emt 0:01:30]} Rxc6 {[%emt 0:00:00]} 43. bxc6 {[%emt 0:00:30]} Qxc6 {[%emt 0:00:00]} 44. Qd3 {[%emt 0:00:30]} Qe6 {[%emt 0:00:30]} 45. Qc2 {[%emt 0:00:30]} Qd7 {[%emt 0:00:00]} 46. Qd3 {[%emt 0:00:30]} Qe6 {[%emt 0:00:00]} 47. Qc2 {[%emt 0:00:00]} Qd7 {[%emt 0:00:00]} 1/2-1/2

[Event "25th Zadar Open 2018"]
[Site "Zadar"]
[Date "2018.12.17"]
[Round "4.7"]
[White "Cvitan, Ognjen"]
[Black "Sinanovic, Muhamed"]
[Result "1-0"]
[ECO "E16"]
[WhiteElo "2503"]
[BlackElo "2325"]
[Annotator "ChessBase"]
[PlyCount "97"]
[EventDate "2018.12.15"]
[EventType "swiss"]
[EventCountry "CRO"]
[SourceTitle "playchess.com"]
[Source "ChessBase"]
[SourceQuality "1"]
[TimeControl "40/5400+30:1800+30"]

1. d4 {[%emt 0:02:30]} e6 {[%emt 0:00:30]} 2. c4 {[%emt 0:03:30]} Bb4+ {[%emt 0:00:30]} 3. Bd2 {[%emt 0:00:30]} Qe7 {[%emt 0:00:30]} 4. Nf3 {[%emt 0:04:30]} Nf6 {[%emt 0:05:30]} 5. g3 {[%emt 0:01:30]} b6 {[%emt 0:10:30]} 6. Bg2 {[%emt 0:02:30]} Bb7 {[%emt 0:00:30]} 7. O-O {[%emt 0:03:30]} Bxd2 {[%emt 0:00:30]} 8. Qxd2 {[%emt 0:01:30]} O-O {[%emt 0:00:30]} 9. Nc3 {[%emt 0:04:30]} Ne4 {[%emt 0:11:30]} 10. Nxe4 {[%emt 0:17:30]} Bxe4 {[%emt 0:00:00]} 11. Rac1 {[%emt 0:00:30]} a5 {[%emt 0:15:00]} 12. Qf4 {[%emt 0:03:30]} Bxf3 {[%emt 0:01:30]} 13. Bxf3 {[%emt 0:00:30]} Ra7 {[%emt 0:00:30]} 14. c5 {[%emt 0:00:30]} bxc5 {[%emt 0:04:30]} 15. Rxc5 {[%emt 0:08:30]} d6 {[%emt 0:00:30]} 16. Rc3 {[%emt 0:04:30]} Nd7 {[%emt 0:01:30]} 17. Bc6 {[%emt 0:00:30]} Rb8 {[%emt 0:02:30]} 18. Qd2 {[%emt 0:04:30]} g6 {[%emt 0:16:30]} 19. Rfc1 {[%emt 0:01:30]} d5 {[%emt 0:00:30]} 20. b3 {[%emt 0:04:30]} Rb6 {[%emt 0:02:30]} 21. h4 {[%emt 0:03:30]} h5 {[%emt 0:00:30]} 22. Kg2 {[%emt 0:02:30]} Kg7 {[%emt 0:02:30]} 23. Qf4 {[%emt 0:05:51]} Nb8 {[%emt 0:04:00]} 24. Ba4 {[%emt 0:01:11]} Na6 {[%emt 0:01:57]} 25. Qd2 {[%emt 0:07:45]} Ra8 {[%emt 0:06:53]} 26. Rc6 {[%emt 0:03:01]} Qb4 {[%emt 0:00:59]} 27. Qf4 {[%emt 0:00:22]} Qe7 {[%emt 0:01:45]} 28. Rxb6 {[%emt 0:00:37]} cxb6 {[%emt 0:00:02]} 29. Bb5 {[%emt 0:00:08]} Qf6 {[%emt 0:05:54]} 30. Qxf6+ {[%emt 0:02:18]} Kxf6 {[%emt 0:00:02]} 31. a3 {[%emt 0:00:46]} Ra7 {[%emt 0:01:36]} 32. Rc6 {[%emt 0:00:31]} Nc7 {[%emt 0:00:07]} 33. Rxb6 {[%emt 0:00:02]} Nxb5 {[%emt 0:00:15]} 34. Rxb5 {[%emt 0:00:05]} Ke7 {[%emt 0:00:03]} 35. a4 {[%emt 0:00:14]} Kd6 {[%emt 0:00:16]} 36. Kf3 {[%emt 0:01:11]} Ke7 {[%emt 0:01:16]} 37. Kf4 {[%emt 0:00:23]} Kf6 {[%emt 0:00:15]} 38. f3 {[%emt 0:00:12]} Ra8 {[%emt 0:00:20]} 39. e4 {[%emt 0:00:22]} dxe4 {[%emt 0:00:08]} 40. fxe4 {[%emt 0:00:00]} Ra7 {[%emt 0:00:00]} 41. e5+ {[%emt 0:05:31]} Ke7 {[%emt 0:05:42]} 42. Ke4 {[%emt 0:00:30]} Kd7 {[%emt 0:00:30]} 43. d5 {[%emt 0:00:30]} exd5+ {[%emt 0:00:30]} 44. Kxd5 {[%emt 0:00:30]} Kc7 {[%emt 0:00:30]} 45. e6 {[%emt 0:01:30]} fxe6+ {[%emt 0:00:30]} 46. Kxe6 {[%emt 0:00:00]} Ra6+ {[%emt 0:00:00]} 47. Kf7 {[%emt 0:00:00]} Rd6 {[%emt 0:00:00]} 48. Rxa5 {[%emt 0:00:30]} Rd3 {[%emt 0:00:30]} 49. Rg5 {[%emt 0:00:30]} 1-0

[Event "25th Zadar Open 2018"]
[Site "Zadar"]
[Date "2018.12.17"]
[Round "4.8"]
[White "Sutkovic, Damir"]
[Black "Blagojevic, Dragisa"]
[Result "0-1"]
[ECO "D45"]
[WhiteElo "2345"]
[BlackElo "2497"]
[Annotator "ChessBase"]
[PlyCount "72"]
[EventDate "2018.12.15"]
[EventType "swiss"]
[EventCountry "CRO"]
[SourceTitle "playchess.com"]
[Source "ChessBase"]
[SourceQuality "1"]
[TimeControl "40/5400+30:1800+30"]

1. d4 {[%emt 0:00:30]} d5 {[%emt 0:00:30]} 2. c4 {[%emt 0:00:00]} e6 {[%emt 0:00:00]} 3. Nf3 {[%emt 0:00:00]} Nf6 {[%emt 0:00:00]} 4. Nc3 {[%emt 0:00:30]} c6 {[%emt 0:00:30]} 5. e3 {[%emt 0:00:30]} Nbd7 {[%emt 0:00:00]} 6. Qc2 {[%emt 0:00:30]} Bd6 {[%emt 0:00:00]} 7. Bd2 {[%emt 0:00:30]} O-O {[%emt 0:01:30]} 8. O-O-O {[%emt 0:01:30]} c5 {[%emt 0:01:30]} 9. Kb1 {[%emt 0:00:30]} a6 {[%emt 0:07:30]} 10. cxd5 {[%emt 0:01:30]} exd5 {[%emt 0:00:30]} 11. h3 {[%emt 0:00:30]} b5 {[%emt 0:05:30]} 12. dxc5 {[%emt 0:01:30]} Nxc5 {[%emt 0:02:30]} 13. g4 {[%emt 0:01:30]} Bb7 {[%emt 0:00:30]} 14. Nd4 {[%emt 0:00:30]} Rc8 {[%emt 0:02:30]} 15. Be1 {[%emt 0:19:30]} Re8 {[%emt 0:26:30]} 16. Rc1 {[%emt 0:17:30]} b4 {[%emt 0:07:30]} 17. Nce2 {[%emt 0:00:30]} Qb6 {[%emt 0:00:30]} 18. Qd1 {[%emt 0:07:30]} a5 {[%emt 0:02:30]} 19. Nf4 {[%emt 0:19:30]} Bxf4 {[%emt 0:11:30]} 20. exf4 {[%emt 0:00:30]} Nce4 {[%emt 0:04:30]} 21. Bb5 {[%emt 0:07:02]} Rxc1+ {[%emt 0:01:30]} 22. Kxc1 {[%emt 0:00:05]} Rc8+ {[%emt 0:00:30]} 23. Kb1 {[%emt 0:00:07]} Nd6 {[%emt 0:02:30]} 24. Be2 {[%emt 0:08:22]} Nfe4 {[%emt 0:01:30]} 25. f3 {[%emt 0:02:05]} Nc3+ {[%emt 0:01:10]} 26. Bxc3 {[%emt 0:00:58]} bxc3 {[%emt 0:00:09]} 27. b3 {[%emt 0:00:35]} a4 {[%emt 0:00:50]} 28. Qd3 {[%emt 0:04:58]} Nc4 {[%emt 0:04:08]} 29. Rc1 {[%emt 0:01:44]} Nb2 {[%emt 0:05:29]} 30. Qb5 {[%emt 0:01:36]} Qxd4 {[%emt 0:01:18]} 31. Qxb7 {[%emt 0:00:04]} Rf8 {[%emt 0:00:09]} 32. Qc6 {[%emt 0:00:48]} Nc4 {[%emt 0:02:04]} 33. Bxc4 {[%emt 0:00:54]} Qd2 {[%emt 0:00:41]} 34. Rc2 {[%emt 0:00:05]} Qd1+ {[%emt 0:00:37]} 35. Rc1 {[%emt 0:00:05]} c2+ {[%emt 0:00:24]} 36. Kb2 {[%emt 0:01:18]} a3+ {[%emt 0:00:07]} 0-1

[Event "25th Zadar Open 2018"]
[Site "Zadar"]
[Date "2018.12.17"]
[Round "4.11"]
[White "Nielsen, Rogvi Egilstoft"]
[Black "Nielsen, Hogni Egilstoft"]
[Result "1-0"]
[ECO "C86"]
[WhiteElo "2339"]
[BlackElo "2400"]
[Annotator "NA"]
[PlyCount "89"]
[EventDate "2018.12.15"]
[EventType "swiss"]
[EventCountry "CRO"]
[SourceTitle "playchess.com"]
[Source "ChessBase"]
[SourceQuality "1"]
[TimeControl "40/5400+30:1800+30"]

1. e4 {[%emt 0:00:30]} e5 {[%emt 0:00:30]} 2. Nf3 {[%emt 0:00:00]} Nc6 {[%emt 0:00:00]} 3. Bb5 {[%emt 0:00:00]} a6 {[%emt 0:00:00]} 4. Ba4 {[%emt 0:00:30]} Nf6 {[%emt 0:00:30]} 5. Qe2 {[%emt 0:00:30]} b5 {[%emt 0:01:30]} 6. Bb3 {[%emt 0:00:00]} Be7 {[%emt 0:00:30]} 7. c3 {[%emt 0:01:00]} d6 {[%emt 0:01:30]} 8. O-O {[%emt 0:03:30]} Na5 {[%emt 0:05:30]} 9. Bc2 {[%emt 0:01:30]} c5 {[%emt 0:00:30]} 10. d4 {[%emt 0:05:30]} Nc6 {[%emt 0:11:30]} 11. dxc5 {[%emt 0:01:30]} dxc5 {[%emt 0:00:30]} 12. a4 {[%emt 0:00:30]} b4 {[%emt 0:05:30]} 13. Nbd2 {[%emt 0:01:30]} O-O {[%emt 0:06:30]} 14. Nc4 {[%emt 0:03:30]} Qc7 {[%emt 0:00:30]} 15. Bg5 {[%emt 0:09:30]} Be6 {[%emt 0:15:30]} 16. Ne3 {[%emt 0:04:30]} bxc3 {[%emt 0:11:30]} 17. bxc3 {[%emt 0:00:30]} h6 {[%emt 0:00:30]} 18. Bxf6 {[%emt 0:04:30]} Bxf6 {[%emt 0:00:30]} 19. Nd5 {[%emt 0:01:30]} Bxd5 {[%emt 0:06:30]} 20. exd5 {[%emt 0:00:00]} Ne7 {[%emt 0:01:30]} 21. Rfe1 {[%emt 0:05:00]} Rfd8 {[%emt 0:08:30]} 22. Rad1 {[%emt 0:13:30]} Nxd5 {[%emt 0:03:25]} 23. Qe4 {[%emt 0:05:30]} Ne7 {[%emt 0:02:36]} 24. Nxe5 {[%emt 0:01:30]} Ng6 {[%emt 0:06:41]} 25. Nxg6 {[%emt 0:09:30]} fxg6 {[%emt 0:00:09]} 26. Qxg6 {[%emt 0:00:30]} Qf7 {[%emt 0:04:46]} 27. Qh7+ {[%emt 0:00:30]} Kf8 {[%emt 0:00:01]} 28. Qf5 {[%emt 0:00:30]} c4 {[%emt 0:02:00]} 29. Be4 {[%emt 0:02:30]} Rxd1 {[%emt 0:02:42]} 30. Rxd1 {[%emt 0:00:00]} Re8 {[%emt 0:01:50]} 31. Bd5 {[%emt 0:06:00]} Qe7 {[%emt 0:00:06]} 32. Bxc4 {[%emt 0:00:55]} Rd8 {[%emt 0:00:40]} 33. Rxd8+ {[%emt 0:00:44]} Qxd8 {[%emt 0:00:02]} 34. g3 {[%emt 0:00:59]} Qc7 {[%emt 0:01:21]} 35. Bxa6 {[%emt 0:10:57]} Qxc3 {[%emt 0:00:14]} 36. a5 {[%emt 0:00:08]} Ke7 {[%emt 0:00:50]} 37. Bb5 {[%emt 0:01:03]} Bd4 {[%emt 0:00:42]} 38. Kg2 {[%emt 0:01:48]} Qb2 {[%emt 0:00:42]} 39. a6 {[%emt 0:05:24]} g6 {[%emt 0:00:41]} 40. Qd7+ {[%emt 0:00:00]} Kf6 {[%emt 0:00:00]} 41. Qd6+ {[%emt 0:02:02]} Kg7 {[%emt 0:02:32]} 42. Qe7+ {[%emt 0:01:30]} Kh8 {[%emt 0:00:30]} 43. Qf8+ {[%emt 0:00:00]} Kh7 {[%emt 0:00:00]} 44. Bc4 {[%emt 0:00:00]} h5 {[%emt 0:00:00]} 45. Bg8+ {[%emt 0:00:30]} 1-0

[Event "25th Zadar Open 2018"]
[Site "Zadar"]
[Date "2018.12.17"]
[Round "4.12"]
[White "Rakesh Kumar Jena"]
[Black "Sokac, Marko"]
[Result "1-0"]
[ECO "A04"]
[WhiteElo "2398"]
[BlackElo "2301"]
[Annotator "NA"]
[PlyCount "111"]
[EventDate "2018.12.15"]
[EventType "swiss"]
[EventCountry "CRO"]
[SourceTitle "playchess.com"]
[Source "ChessBase"]
[SourceQuality "1"]
[TimeControl "40/5400+30:1800+30"]

1. Nf3 {[%emt 0:00:30]} c5 {[%emt 0:15:30]} 2. g3 {[%emt 0:00:00]} Nc6 {[%emt 0:00:30]} 3. Bg2 {[%emt 0:00:00]} g6 {[%emt 0:00:00]} 4. O-O {[%emt 0:00:30]} Bg7 {[%emt 0:00:00]} 5. c3 {[%emt 0:00:30]} e5 {[%emt 0:01:30]} 6. d4 {[%emt 0:00:30]} cxd4 {[%emt 0:00:30]} 7. cxd4 {[%emt 0:00:30]} e4 {[%emt 0:00:00]} 8. Ne5 {[%emt 0:02:30]} d5 {[%emt 0:00:00]} 9. f3 {[%emt 0:00:30]} Qb6 {[%emt 0:00:30]} 10. Nxc6 {[%emt 0:02:30]} exf3 {[%emt 0:01:30]} 11. Ne5 {[%emt 0:22:30]} Bxe5 {[%emt 0:05:30]} 12. Bxf3 {[%emt 0:00:30]} Bxd4+ {[%emt 0:22:30]} 13. Kg2 {[%emt 0:03:30]} Ne7 {[%emt 0:10:30]} 14. Nc3 {[%emt 0:02:30]} Bxc3 {[%emt 0:04:30]} 15. bxc3 {[%emt 0:00:30]} Be6 {[%emt 0:00:30]} 16. Bg5 {[%emt 0:00:30]} Nf5 {[%emt 0:08:30]} 17. Rb1 {[%emt 0:01:30]} Ne3+ {[%emt 0:02:30]} 18. Bxe3 {[%emt 0:00:30]} Qxe3 {[%emt 0:00:30]} 19. Rxb7 {[%emt 0:13:30]} O-O {[%emt 0:00:30]} 20. Qd4 {[%emt 0:00:30]} Qxd4 {[%emt 0:00:30]} 21. cxd4 {[%emt 0:00:00]} Rfc8 {[%emt 0:00:30]} 22. Rfb1 {[%emt 0:01:00]} Rc4 {[%emt 0:00:30]} 23. R1b4 {[%emt 0:00:30]} Rac8 {[%emt 0:01:30]} 24. Kf2 {[%emt 0:06:30]} a5 {[%emt 0:00:30]} 25. R4b5 {[%emt 0:00:30]} Rxd4 {[%emt 0:08:18]} 26. Rxa5 {[%emt 0:00:30]} Rd2 {[%emt 0:00:07]} 27. g4 {[%emt 0:17:30]} d4 {[%emt 0:03:57]} 28. a4 {[%emt 0:00:00]} Ra2 {[%emt 0:00:32]} 29. Kg3 {[%emt 0:01:00]} Rc4 {[%emt 0:02:23]} 30. Ra8+ {[%emt 0:06:18]} Kg7 {[%emt 0:00:01]} 31. g5 {[%emt 0:00:09]} Rc8 {[%emt 0:06:02]} 32. Rxc8 {[%emt 0:02:08]} Bxc8 {[%emt 0:00:01]} 33. Ra7 {[%emt 0:02:12]} Be6 {[%emt 0:00:28]} 34. Kf4 {[%emt 0:01:59]} h6 {[%emt 0:00:21]} 35. h4 {[%emt 0:00:01]} hxg5+ {[%emt 0:00:05]} 36. hxg5 {[%emt 0:00:02]} Bc4 {[%emt 0:02:50]} 37. Ke5 {[%emt 0:02:22]} Rd2 {[%emt 0:02:56]} 38. Rc7 {[%emt 0:05:16]} Bb3 {[%emt 0:00:31]} 39. a5 {[%emt 0:00:39]} Ra2 {[%emt 0:01:17]} 40. Rc5 {[%emt 0:00:00]} Bd1 {[%emt 0:00:00]} 41. Kxd4 {[%emt 0:03:54]} Bxe2 {[%emt 0:01:41]} 42. Bxe2 {[%emt 0:02:30]} Rxe2 {[%emt 0:00:30]} 43. Kc4 {[%emt 0:01:30]} Re7 {[%emt 0:10:30]} 44. a6 {[%emt 0:00:30]} f6 {[%emt 0:00:30]} 45. gxf6+ {[%emt 0:05:30]} Kxf6 {[%emt 0:00:30]} 46. Kb5 {[%emt 0:00:00]} g5 {[%emt 0:05:14]} 47. Kb6 {[%emt 0:01:00]} Kg6 {[%emt 0:00:27]} 48. a7 {[%emt 0:01:30]} Re8 {[%emt 0:00:59]} 49. Ra5 {[%emt 0:00:30]} Ra8 {[%emt 0:00:50]} 50. Kb7 {[%emt 0:00:30]} Rf8 {[%emt 0:00:12]} 51. a8=Q {[%emt 0:01:30]} Rxa8 {[%emt 0:00:04]} 52. Rxa8 {[%emt 0:00:00]} Kf5 {[%emt 0:00:30]} 53. Kc6 {[%emt 0:00:00]} g4 {[%emt 0:00:11]} 54. Kd5 {[%emt 0:00:30]} g3 {[%emt 0:00:30]} 55. Rf8+ {[%emt 0:00:00]} Kg4 {[%emt 0:00:05]} 56. Ke4 {[%emt 0:00:00]} 1-0

[Event "25th Zadar Open 2018"]
[Site "Zadar"]
[Date "2018.12.17"]
[Round "4.13"]
[White "Pallitsch, Clemens"]
[Black "Loncar, Robert"]
[Result "0-1"]
[ECO "E70"]
[WhiteElo "2176"]
[BlackElo "2397"]
[Annotator "NA"]
[PlyCount "76"]
[EventDate "2018.12.15"]
[EventType "swiss"]
[EventCountry "CRO"]
[SourceTitle "playchess.com"]
[Source "ChessBase"]
[SourceQuality "1"]
[TimeControl "40/5400+30:1800+30"]

1. d4 {[%emt 0:00:30]} Nf6 {[%emt 0:06:30]} 2. c4 {[%emt 0:00:00]} g6 {[%emt 0:00:00]} 3. Nc3 {[%emt 0:00:00]} Bg7 {[%emt 0:00:00]} 4. e4 {[%emt 0:00:00]} O-O {[%emt 0:00:30]} 5. Nge2 {[%emt 0:00:00]} c5 {[%emt 0:02:30]} 6. d5 {[%emt 0:00:30]} b5 {[%emt 0:02:30]} 7. cxb5 {[%emt 0:01:30]} a6 {[%emt 0:00:30]} 8. Ng3 {[%emt 0:00:30]} h5 {[%emt 0:10:30]} 9. h4 {[%emt 0:02:30]} d6 {[%emt 0:01:30]} 10. Be2 {[%emt 0:04:30]} axb5 {[%emt 0:05:30]} 11. Nxb5 {[%emt 0:01:30]} Bg4 {[%emt 0:09:30]} 12. f3 {[%emt 0:01:30]} Bd7 {[%emt 0:00:30]} 13. a4 {[%emt 0:01:30]} Na6 {[%emt 0:08:30]} 14. Be3 {[%emt 0:04:30]} Nc7 {[%emt 0:09:30]} 15. Nc3 {[%emt 0:02:30]} Qb8 {[%emt 0:04:30]} 16. Qc2 {[%emt 0:06:30]} e6 {[%emt 0:01:30]} 17. dxe6 {[%emt 0:06:30]} Nxe6 {[%emt 0:02:30]} 18. Kf2 {[%emt 0:04:30]} Nd4 {[%emt 0:03:30]} 19. Bxd4 {[%emt 0:02:30]} cxd4 {[%emt 0:00:00]} 20. Nb5 {[%emt 0:00:30]} Rc8 {[%emt 0:03:00]} 21. Qd2 {[%emt 0:01:30]} d5 {[%emt 0:07:30]} 22. Rhc1 {[%emt 0:05:30]} Rxc1 {[%emt 0:04:16]} 23. Qxc1 {[%emt 0:01:30]} dxe4 {[%emt 0:00:20]} 24. Nxe4 {[%emt 0:02:30]} Nxe4+ {[%emt 0:00:34]} 25. fxe4 {[%emt 0:00:30]} Qh2 {[%emt 0:08:54]} 26. Qg5 {[%emt 0:06:30]} Be5 {[%emt 0:00:31]} 27. Bc4 {[%emt 0:00:00]} Ra6 {[%emt 0:01:58]} 28. Rf1 {[%emt 0:06:00]} Bg4 {[%emt 0:02:43]} 29. Ke1 {[%emt 0:02:30]} Bg3+ {[%emt 0:01:36]} 30. Kd2 {[%emt 0:00:00]} Bxh4 {[%emt 0:00:33]} 31. Qc5 {[%emt 0:05:00]} Qxg2+ {[%emt 0:00:13]} 32. Kc1 {[%emt 0:00:00]} Be6 {[%emt 0:01:24]} 33. b3 {[%emt 0:11:00]} Bg5+ {[%emt 0:01:35]} 34. Kb1 {[%emt 0:00:00]} Qxe4+ {[%emt 0:00:12]} 35. Kb2 {[%emt 0:00:00]} Qg2+ {[%emt 0:00:37]} 36. Ka1 {[%emt 0:00:30]} Rc6 {[%emt 0:00:41]} 37. Qa7 {[%emt 0:12:44]} Rxc4 {[%emt 0:00:12]} 38. Qa8+ {[%emt 0:00:27]} Qxa8 {[%emt 0:02:11]} 0-1

[Event "25th Zadar Open 2018"]
[Site "Zadar"]
[Date "2018.12.17"]
[Round "4.14"]
[White "Plenca, Jadranko"]
[Black "Karthik Kumar Pradeep"]
[Result "1-0"]
[ECO "B23"]
[WhiteElo "2475"]
[BlackElo "2230"]
[Annotator "ChessBase"]
[PlyCount "53"]
[EventDate "2018.12.15"]
[EventType "swiss"]
[EventCountry "CRO"]
[SourceTitle "playchess.com"]
[Source "ChessBase"]
[SourceQuality "1"]
[TimeControl "40/5400+30:1800+30"]

1. e4 {[%emt 0:01:30]} c5 {[%emt 0:00:30]} 2. Nc3 {[%emt 0:00:30]} Nc6 {[%emt 0:00:30]} 3. Nge2 {[%emt 0:00:00]} e5 {[%emt 0:03:30]} 4. Nd5 {[%emt 0:01:00]} d6 {[%emt 0:00:30]} 5. Nec3 {[%emt 0:00:30]} Be6 {[%emt 0:01:30]} 6. Bc4 {[%emt 0:01:30]} g6 {[%emt 0:25:30]} 7. d3 {[%emt 0:02:30]} Bg7 {[%emt 0:00:30]} 8. O-O {[%emt 0:00:30]} h6 {[%emt 0:04:30]} 9. f4 {[%emt 0:01:30]} Nge7 {[%emt 0:06:30]} 10. Nxe7 {[%emt 0:24:30]} Nxe7 {[%emt 0:00:30]} 11. f5 {[%emt 0:00:30]} Bxc4 {[%emt 0:06:30]} 12. dxc4 {[%emt 0:01:30]} f6 {[%emt 0:14:30]} 13. fxg6 {[%emt 0:01:30]} h5 {[%emt 0:00:30]} 14. Nb5 {[%emt 0:03:30]} Nc8 {[%emt 0:03:30]} 15. Rf5 {[%emt 0:05:30]} a6 {[%emt 0:00:30]} 16. Nc3 {[%emt 0:00:00]} Ne7 {[%emt 0:03:30]} 17. Rxh5 {[%emt 0:01:00]} Nxg6 {[%emt 0:00:30]} 18. Rxh8+ {[%emt 0:00:30]} Bxh8 {[%emt 0:00:30]} 19. Qh5 {[%emt 0:01:30]} Kf7 {[%emt 0:00:30]} 20. Nd5 {[%emt 0:03:30]} Bg7 {[%emt 0:03:30]} 21. Bg5 {[%emt 0:00:30]} Qh8 {[%emt 0:02:30]} 22. Qf3 {[%emt 0:06:30]} Ne7 {[%emt 0:01:18]} 23. Rf1 {[%emt 0:03:30]} Nxd5 {[%emt 0:01:04]} 24. cxd5 {[%emt 0:00:30]} Rf8 {[%emt 0:04:55]} 25. Qf5 {[%emt 0:01:30]} Qh5 {[%emt 0:00:53]} 26. g4 {[%emt 0:01:30]} Qh8 {[%emt 0:01:52]} 27. Bxf6 {[%emt 0:02:30]} 1-0